Cogmind - Beta 16.1 @@@ ROGUE MODE // 2026.04.05 @ 02:16:15 Player: gamerman Result: Destroyed by S-27 Virus with Autogun Performance ------------- Evolutions (3) 1500 Regions Visited (6) 1200 Robots Destroyed (28) 140 Value Destroyed (603) 603 Prototype IDs (24) 480 Alien Tech Used (0) 0 Bonus (300) 300 TOTAL SCORE: 4223 Bonus ------- Aligned with FarCom 300 Cogmind --------- Core Integrity 0/700 Matter 27/300 Energy 57/100 System Corruption 5% Temperature Cool (0) Movement Core (50) Location -7/Factory Parts ------- > --- POWER (1) -------- (None) > --- PROPULSION (5) --- (None) > --- UTILITY (5) ------ Hacking Suite Hacking Suite > --- WEAPON (2) ------- (None) > --- INVENTORY (5) ---- Nuclear Core Micro Nuclear Core YOLO Cannon Peak State ------------ > --- POWER ------------ Micro Nuclear Core > --- PROPULSION ------- Gravmag System Gravmag System Gravmag System Gravmag System > --- UTILITY ---------- Improved Heat Sink Improved Medium Armor Plating Improved Medium Armor Plating Hacking Suite Hacking Suite > --- WEAPON ----------- High-powered Shotgun > --- INVENTORY -------- Nuclear Core Transmission Jammer Improved Medium Armor Plating YOLO Cannon [Rating: 43] Favorites ----------- Power Light Ion Engine Engine Light Ion Engine Power Core Micro Nuclear Core Propulsion Aluminum Leg Leg Aluminum Leg Wheel Wheel Hover Unit Gravmag System Flight Unit Flight Unit Utility Small Storage Unit Device Improved Heat Sink Storage Small Storage Unit Processor Improved Signal Interpreter Hackware Hacking Suite Protection Improved Medium Armor Plating Weapon Light Assault Rifle Energy Gun Particle Gun Energy Cannon YOLO Cannon Ballistic Gun Light Assault Rifle Ballistic Cannon Slug Cannon Launcher Improved Grenade Launcher Build | -11 -10 -10 -10 -9 -8 -7 ------- Run | Yrd Mat Min Exi Min Mat Fac Slots Evolved 6 | . . . . . 4 2 Power . | . . . . . . . Propulsion 3 | . . . . . 3 . Utility 3 | . . . . . 1 2 Weapon . | . . . . . . . Parts Attached 43 | 6 2 6 . . 14 15 Power 5 | 1 1 1 . . 1 1 Engine 4 | 1 1 1 . . 1 . Core 1 | . . . . . . 1 Reactor . | . . . . . . . Propulsion 16 | 2 . 2 . . 7 5 Treads . | . . . . . . . Leg 2 | . . 2 . . . . Wheel 2 | 2 . . . . . . Hover 4 | . . . . . . 4 Flight 8 | . . . . . 7 1 Utility 10 | 1 . . . . 3 6 Device 2 | . . . . . . 2 Storage 1 | 1 . . . . . . Processor 1 | . . . . . . 1 Hackware 3 | . . . . . 3 . Protection 3 | . . . . . . 3 Artifact . | . . . . . . . Weapon 12 | 2 1 3 . . 3 3 Energy Gun 2 | . . 2 . . . . Energy Cannon 1 | . . . . . . 1 Ballistic Gun 6 | 2 1 . . . 1 2 Ballistic Cannon 1 | . . 1 . . . . Launcher 2 | . . . . . 2 . Special Weapon . | . . . . . . . Impact Weapon . | . . . . . . . Slashing Weapon . | . . . . . . . Piercing Weapon . | . . . . . . . Special Melee Weapon . | . . . . . . . Unidentified Prototypes 1 | . . . . . 1 . Parts Lost 22 | . 2 2 . 2 8 8 Power 1 | . . 1 . . . . Propulsion 16 | . 2 . . 2 7 5 Utility 2 | . . . . . . 2 Weapon 3 | . . 1 . . 1 1 Highest Loss Streak 7 | . 2 1 . 2 5 7 To Critical Strikes . | . . . . . . . Average Backups 6 | 2 6 7 7 7 3 3 Power 1 | . 2 2 1 1 1 . Propulsion 3 | 1 3 5 5 5 . . Utility . | . . . . . 1 1 Weapon . | . 1 . . 1 1 1 Tool/Special . | . . . . . . . Unused Backups 11 | 1 6 . 1 . 1 2 Power 4 | . 2 . 1 . . 1 Propulsion 4 | 1 3 . . . . . Utility 2 | . . . . . 1 1 Weapon 1 | . 1 . . . . . Tool/Special . | . . . . . . . Average Slot Usage (%) 76 | . 78 83 85 85 59 53 Engine 11 | . 14 13 14 14 5 . Leg 17 | . . 26 28 28 . . Wheel 3 | . 21 . . . . . Hover 1 | . . . . . . 11 Flight 1 | . . . . . 22 . Storage 11 | . 14 14 14 14 3 . Hackware 3 | . . . . . 16 18 Ballistic Gun 14 | . 28 14 14 14 8 5 Ballistic Cannon 8 | . . 12 14 14 2 . Peak Build Rating 43 | 6 8 11 11 11 21 43 Average Rating 12 | 4 6 9 10 10 15 26 On Entrance 7 | . 6 5 10 11 9 14 Avg Prop Armor Cover (%) . | . . . . . . . Naked Turns . | . . . . . . . Heaviest Build 24 | 12 14 20 16 16 20 24 Greatest Support 40 | 26 26 20 20 20 20 40 Greatest Overweight (x) 5 | . 4 5 . 5 1 4 Average Overweight (x) . | . . . . . . . Largest Inventory Capacity 8 | 8 8 8 8 8 8 5 Average Capacity 7 | 6 8 8 8 8 5 5 Most Carried 8 | 5 8 8 8 8 7 5 Average Carried 6 | 3 6 7 7 8 4 4 Final Capacity 8 | 8 8 8 8 8 5 5 Final Carried 8 | 4 7 8 8 8 5 4 Class Distribution -------------------- 51% | Scavenger-Mutant 30% | Mutant 16% | Hacker-Mutant Dominant Class ---------------- Mutant | -10/Materials Scavenger-Mutant | -10/Mines Scavenger-Mutant | -10/Exiles Scavenger-Mutant | -9/Mines Hacker-Mutant | -8/Materials Hacker-Mutant | -7/Factory Resources | -11 -10 -10 -10 -9 -8 -7 ----------- Run | Yrd Mat Min Exi Min Mat Fac Matter Collected 670 | 231 13 285 . 28 35 78 Remotely . | . . . . . . . Salvage Created 634 | . 337 163 . . 84 50 Parts 54 | . 32 9 . . 10 3 Haulers Intercepted . | . . . . . . . Recyclers Shooed 3 | . 3 . . . . . Parts Field Recycled . | . . . . . . . Retrieved Matter . | . . . . . . . Parts Self-Destructed . | . . . . . . . Prevented . | . . . . . . . Parts Restored . | . . . . . . . Kills | -11 -10 -10 -10 -9 -8 -7 ------- Run | Yrd Mat Min Exi Min Mat Fac Combat Hostiles Destroyed 24 | . 12 6 . . 4 2 Guns 17 | . 12 3 . . 1 1 Cannons 3 | . . 3 . . . . AOE 4 | . . . . . 3 1 Classes Destroyed 5 | . 4 . . . . 1 Recycler 1 | . 1 . . . . . Operator 3 | . 1 . . . 2 . Swarmer 16 | . 9 2 . . 4 1 Grunt 7 | . 3 4 . . . . Programmer 1 | . . . . . . 1 Best Kill Streak 6 | . 6 2 . . 5 1 Combat Bots Only 5 | . 5 2 . . 3 1 Max Kills in Single Turn 2 | . 2 1 . . 2 1 Gunslinging 1 | . 1 . . . . . Exploded 2 | . . . . . 2 1 Melee . | . . . . . . . Uniques/NPCs Destroyed . | . . . . . . . Combat | -11 -10 -10 -10 -9 -8 -7 -------- Run | Yrd Mat Min Exi Min Mat Fac Hostile Shots Fired 374 | . 63 58 . 2 71 180 Missed 156 | . 21 20 . 1 37 77 Hits 218 | . 42 38 . 1 34 103 Projectile 218 | . 42 38 . 1 34 103 AOE 5 | . . . . 5 . . Critical Strikes 1 | . . . . . . 1 Part Disruptions 1 | . . . . . . 1 Damage Taken 3067 | . 341 359 . 134 424 1809 Core 997 | . 97 80 . 18 100 702 Absorbed by Shields . | . . . . . . . Core Remaining (%) 67 | 100 . . . 22 81 . Volleys Fired 100 | . 44 25 . . 20 11 Largest 2 | . 2 2 . . 2 1 Hottest 100 | . 40 60 . . 60 100 Shots Fired 176 | . 88 49 . . 29 10 Gun 146 | . 88 29 . . 20 9 Cannon 27 | . . 20 . . 6 1 Launcher 3 | . . . . . 3 . Special . | . . . . . . . Kinetic 172 | . 88 49 . . 26 9 Thermal 1 | . . . . . . 1 Explosive 1 | . . . . . 1 . Electromagnetic 2 | . . . . . 2 . Robot Hit Streak 12 | . 12 5 . . 4 3 Robot Miss Streak 8 | . 8 6 . . 4 5 Penetration Max . | . . . . . . . Secondary Targets 7 | . 6 1 . . . . Max Gunslinging Chain 1 | . 1 1 . . . . Shots Hit Robots 91 | . 45 23 . . 17 6 Core Hits 48 | . 26 9 . . 9 4 Critical Kills 2 | . . 2 . . . . Critical Parts Destroyed 1 | . . 1 . . . . Critical Strikes 3 | . . 3 . . . . Destroy 3 | . . 3 . . . . Melee Attacks . | . . . . . . . Impact . | . . . . . . . Slashing . | . . . . . . . Piercing . | . . . . . . . Sneak Attacks . | . . . . . . . Combat Hostiles . | . . . . . . . Follow-up Attacks . | . . . . . . . Damage Inflicted 1381 | . 389 263 . . 565 164 Guns 793 | . 389 134 . . 168 102 Cannons 229 | . . 129 . . 100 . Explosions 347 | . . . . . 297 50 Melee . | . . . . . . . Ramming 12 | . . . . . . 12 Kinetic 1022 | . 389 263 . . 268 102 Thermal 50 | . . . . . . 50 Explosive 84 | . . . . . 84 . Electromagnetic 213 | . . . . . 213 . Impact . | . . . . . . . Slashing . | . . . . . . . Piercing . | . . . . . . . Highest Corruption 5 | . . . . . . 5 Average Corruption 1 | . . . . . . 1 Corruption Purged . | . . . . . . . Corruption Blocked . | . . . . . . . Effects 4 | . . . . . . 4 Heat Flow Errors 1 | . . . . . . 1 Energy Discharges 1 | . . . . . . 1 Parts Rejected 1 | . . . . . . 1 Weapon Failures 1 | . . . . . . 1 Overload Shots . | . . . . . . . Overflow Damage 56 | . . 4 . . 52 . Projectiles 4 | . . 4 . . . . Explosions 52 | . . . . . 52 . Melee . | . . . . . . . Knockbacks 2 | . . 1 . . 1 . Impact . | . . . . . . . Kinetic 2 | . . 1 . . 1 . Secondary . | . . . . . . . Self-Inflicted Damage 91 | . . . . . 10 81 Shots 2 | . . . . . 1 1 Rammed 1 | . . . . . . 1 Targets Rammed 1 | . . . . . . 1 Kicked . | . . . . . . . Crushed . | . . . . . . . Highest Temperature 88 | . 10 88 . . 30 76 Average Temperature 14 | . 2 31 . . 13 24 Received Heat Transfer 336 | . 42 96 . . 72 126 Siege Activations . | . . . . . . . Martial Activations . | . . . . . . . Shielding Activations . | . . . . . . . Robots Disrupted . | . . . . . . . Combat Hostiles . | . . . . . . . Robots Corrupted . | . . . . . . . Combat Hostiles . | . . . . . . . Parts Fried . | . . . . . . . Impact Corruptions . | . . . . . . . Robots Melted . | . . . . . . . Combat Hostiles . | . . . . . . . Parts Melted . | . . . . . . . Heat Transferred 80 | . . . . . . 80 Parts Sabotaged . | . . . . . . . Parts Stolen . | . . . . . . . Parts Stripped . | . . . . . . . Power Chain Reactions . | . . . . . . . Alert | -11 -10 -10 -10 -9 -8 -7 ------- Run | Yrd Mat Min Exi Min Mat Fac Maximum Alert Level 1 | . . . . . 1 . Low Security (%) 94 | 100 100 100 . 100 30 100 Level 1 5 | . . . . . 69 . Level 2 . | . . . . . . . Level 3 . | . . . . . . . Level 4 . | . . . . . . . Level 5 . | . . . . . . . High Security . | . . . . . . . Max Security . | . . . . . . . Peak Influence 310 | . 190 102 . . 310 147 Initial 136 | . . 62 . . . 136 Average 52 | . 81 17 . . 185 114 Influence Increases 1197 | . 300 152 . . 464 281 Destroy 0b10 Robot/C 480 | . 240 120 . . 80 40 Destroy 0b10 Robot/NC 20 | . 10 . . . 10 . Destroy Leader 90 | . 50 20 . . 10 10 Successful Hack 55 | . . . . . 4 51 Disable Machine 60 | . . . . . 60 . Destroy Structure 42 | . . 12 . . 15 15 Partial Spotted 15 | . . . . . 15 . Lose Combat Pursuer 435 | . . . . . 270 165 Influence Decreases 1050 | . 140 312 . . 164 434 Entered New Map 262 | . . 98 . . . 164 Time Decay 576 | . 120 202 . . 84 170 Lost Part 192 | . 20 12 . . 80 80 Lost Ally 20 | . . . . . . 20 Squads Dispatched 8 | . 2 . . . 2 4 Investigation 2 | . . . . . 1 1 Extermination 1 | . . . . . . 1 Reinforcement 5 | . 2 . . . 1 2 Assault . | . . . . . . . Garrison . | . . . . . . . Intercept . | . . . . . . . Searches Triggered . | . . . . . . . Construction Impeded . | . . . . . . . Haulers Reinforced 1 | . . . . . . 1 Active Scanning Responses . | . . . . . . . Cargo Convoy Interrupts . | . . . . . . . Stealth | -11 -10 -10 -10 -9 -8 -7 --------- Run | Yrd Mat Min Exi Min Mat Fac Distress Signals 2 | . 1 . . . 1 . Communications Jammed . | . . . . . . . Distress Signals . | . . . . . . . Times Spotted 73 | . 14 7 . 1 29 22 Peak Tracking Total 15 | . 5 3 . 1 10 15 Tactical Retreats 11 | . . . . . 6 5 Traps | -11 -10 -10 -10 -9 -8 -7 ------- Run | Yrd Mat Min Exi Min Mat Fac Traps Triggered 3 | . . . . . 1 2 Indirectly . | . . . . . . . Trap Hack Attempts . | . . . . . . . Triggered . | . . . . . . . Disarmed . | . . . . . . . Reprogrammed . | . . . . . . . Reused . | . . . . . . . Traps Extracted . | . . . . . . . Installed . | . . . . . . . Triggered . | . . . . . . . Machines | -11 -10 -10 -10 -9 -8 -7 ---------- Run | Yrd Mat Min Exi Min Mat Fac Machines Disabled 4 | . . . . . 4 . Max in Single Turn 2 | . . . . . 2 . Garrison Access 1 | . . . . . 1 . Machines Repaired . | . . . . . . . Machines Dismantled . | . . . . . . . Machines Sabotaged . | . . . . . . . Overloaded Fab Kills . | . . . . . . . Hacking | -11 -10 -10 -10 -9 -8 -7 --------- Run | Yrd Mat Min Exi Min Mat Fac Machines Accessed 13 | . 2 1 2 . 3 5 Terminals 6 | . 1 1 . . 2 2 Fabricators 1 | . . . . . . 1 Repair Stations . | . . . . . . . Recycling Units 1 | . 1 . . . . . Scanalyzers 1 | . . . . . . 1 Garrison Access 2 | . . . . . 1 1 Total Hacks 27 | . 3 2 2 . 8 12 Successful 15 | . . . 2 . 5 8 Failed 12 | . 3 2 . . 3 4 Catastrophic 1 | . 1 . . . . . Database Lockouts . | . . . . . . . Manual 18 | . 2 2 1 . 5 8 Terminals 14 | . 1 2 . . 5 6 Fabricators 2 | . . . . . . 2 Repair Stations . | . . . . . . . Recycling Units 2 | . 2 . . . . . Scanalyzers 2 | . . . . . . 2 Garrison Access 5 | . . . . . 3 2 Terminal Hacks 7 | . . . 2 . 2 3 Record 1 | . . . 1 . . . Level Access Points 1 | . . . . . . 1 Branch Access Points 1 | . . . . . . 1 Terminal Index 1 | . . . . . . 1 Unreport Threat 1 | . . . . . 1 . Hauler Manifests 1 | . . . . . 1 . Proto ID Catalog 1 | . . . 1 . . . Fabricator Hacks . | . . . . . . . Repair Station Hacks . | . . . . . . . Recycling Unit Hacks . | . . . . . . . Scanalyzer 2 | . . . . . . 2 Retrieve Study 2 | . . . . . . 2 Garrison Access Hacks 2 | . . . . . 1 1 Seal Access 1 | . . . . . 1 . Coupler Status 1 | . . . . . . 1 Unauthorized Hacks 4 | . . . . . 2 2 Terminals 3 | . . . . . 2 1 Botnet 3 | . . . . . 2 1 Fabricators . | . . . . . . . Repair Stations . | . . . . . . . Recycling Units . | . . . . . . . Scanalyzers . | . . . . . . . Garrison Access 1 | . . . . . . 1 Reprogram 1 | . . . . . . 1 Data Cores Recovered 1 | . . . . . 1 . Used 1 | . . . . . 1 . Hacking Detections 10 | . 2 1 . . 2 5 Full Trace Events . | . . . . . . . Feedback Events . | . . . . . . . Feedback Blocked . | . . . . . . . Robot Schematics Acquired . | . . . . . . . Robots Built . | . . . . . . . Authchips . | . . . . . . . Time . | . . . . . . . Total Robot Build Rating . | . . . . . . . Part Schematics Acquired . | . . . . . . . Parts Built . | . . . . . . . Authchips . | . . . . . . . Time . | . . . . . . . Total Part Build Rating . | . . . . . . . Part Studies Acquired 2 | . . . . . . 2 Parts Repaired . | . . . . . . . Time . | . . . . . . . Parts Recycled . | . . . . . . . Recycled Matter . | . . . . . . . Retrieved Matter . | . . . . . . . Retrieved Components . | . . . . . . . Parts Scanalyzed . | . . . . . . . Part Schematics Acquired . | . . . . . . . Parts Damaged . | . . . . . . . Bothacking | -11 -10 -10 -10 -9 -8 -7 ------------ Run | Yrd Mat Min Exi Min Mat Fac Used RIF Installer . | . . . . . . . Robots Hacked . | . . . . . . . Non-combat . | . . . . . . . Combat . | . . . . . . . Robot Hacks Applied . | . . . . . . . Relay Couplers Released . | . . . . . . . Fabnet Peak Effective % . | . . . . . . . Robots Rewired . | . . . . . . . Allies Hacked . | . . . . . . . Hacks Repelled . | . . . . . . . Allies | -11 -10 -10 -10 -9 -8 -7 -------- Run | Yrd Mat Min Exi Min Mat Fac Total Allies 4 | . . . . 3 . 1 Largest Group 3 | . . . . 3 . 1 Highest-Rated Group 40 | . . . . 40 . 21 Highest-Rated Ally 21 | . . . . 16 . 21 Total Orders . | . . . . . . . Ally Attacks 3 | . . . . 1 . 2 Total Damage 53 | . . . . 15 . 38 Kills . | . . . . . . . Allies Corrupted . | . . . . . . . Allies Melted . | . . . . . . . Intel | -11 -10 -10 -10 -9 -8 -7 ------- Run | Yrd Mat Min Exi Min Mat Fac Active Infowar (turns) . | . . . . . . . Robot Analysis Total . | . . . . . . . Derelict Logs Recovered 2 | . . 1 . 1 . . Drone Launches . | . . . . . . . Drone Recoveries . | . . . . . . . Exploration | -11 -10 -10 -10 -9 -8 -7 ------------- Run | Yrd Mat Min Exi Min Mat Fac Turns Passed 2557 | 78 358 977 278 334 186 346 Spaces Moved 2332 | 70 204 710 231 278 299 540 Core 250 | 2 26 8 . 1 4 209 Treads . | . . . . . . . Legs 1210 | . . 702 231 277 . . Wheels 246 | 68 178 . . . . . Hover 319 | . . . . . . 319 Flight 307 | . . . . . 295 12 Fastest Speed 28 | 50 90 120 120 120 28 35 Average Speed 92 | 89 110 121 120 120 35 51 Slowest Speed 300 | 100 250 300 120 300 120 250 Overloaded Moves . | . . . . . . . Propulsion Burnouts . | . . . . . . . Robots Hopped 8 | . . . . . 7 1 Potential Cave-ins . | . . . . . . . Cave-ins Triggered . | . . . . . . . Exploration Rate (%) 46 | 3 29 95 63 77 47 14 Regions Visited 6 Branch Regions 3 Pre-discovered Areas . | . . . . . . . Known Exits Taken . | . . . . . . . Unknown Exits Taken 6 | 1 1 1 1 1 1 . Scrap Searched 4 | . . 2 . 2 . . Spaces Dug . | . . . . . . . Terrain Destroyed 45 | . . 14 . . 15 16 Melee . | . . . . . . . Projectile 18 | . . 14 . . 4 . AOE 27 | . . . . . 11 16 Terrain Rammed . | . . . . . . . Walls Destroyed . | . . . . . . . Machines Disabled . | . . . . . . . Actions | -11 -10 -10 -10 -9 -8 -7 --------- Run | Yrd Mat Min Exi Min Mat Fac Total 2577 | 83 272 777 233 277 342 593 Wait 52 | . 6 35 . . 6 5 Move 2310 | 69 203 709 230 277 284 538 Hop 8 | . . . . . 7 1 Pick Up 28 | 7 9 . 1 . 4 7 Fast Attach 25 | 4 . 5 . . 7 9 Attach 15 | 2 . . . . 6 7 Detach 4 | . . 1 . . . 3 Swap 6 | . 2 1 . . 2 1 Drop 27 | 1 8 1 2 . 6 9 Fire 100 | . 44 25 . . 20 11 Melee . | . . . . . . . Ram 1 | . . . . . . 1 Kick . | . . . . . . . Crush . | . . . . . . . Escape Stasis . | . . . . . . . Rewire 1 | . . . . . . 1 Trap . | . . . . . . . Miscellaneous . | . . . . . . . Route ------- -11/Scrapyard -10/Materials (discovered 2 exits: *Min / [*Sub]) -10/Mines (discovered 3 exits: [*Mat x2] / *Exi) -10/Exiles (discovered 2 exits: [*Min x2]) -9/Mines -8/Materials -7/Factory (discovered 6 exits: *Fac x4 / Low x2) History --------- Turn | Location | Event 7 | -11/Scrapyard | Discovered new exit (range 16) 79 | -11/Scrapyard | Entered Materials 184 | -10/Materials | Discovered new exit (range 15) 274 | -10/Materials | Discovered new exit (range 9) 317 | -10/Materials | Build established: Mutant 437 | -10/Materials | Entered Mines 444 | -10/Mines | Core integrity fell below 50% 517 | -10/Mines | A weapon hastily lodged in a ceiling crevice suddenly fell to the ground 562 | -10/Mines | Learned Materials stockpile data 723 | -10/Mines | Received a Rocket Launcher from a helpful Derelict 1058 | -10/Mines | Discovered new exit (range 12) 1143 | -10/Mines | Build established: Scavenger-Mutant 1203 | -10/Mines | Discovered new exit (range 4) 1237 | -10/Mines | Found a hidden stash of uninstalled traps 1408 | -10/Mines | Deemed a non-threat by the Exiles lab entrance 1409 | -10/Mines | Discovered new exit (range 5) 1414 | -10/Mines | Entered Exiles 1431 | -10/Exiles | Discovered new exit (range 15) 1444 | -10/Exiles | Met 8R-AWN 1466 | -10/Exiles | Met EX-HEX 1500 | -10/Exiles | Met EX-BIN 1532 | -10/Exiles | Aligned with FarCom system 1533 | -10/Exiles | Given EX-Vault access code 1561 | -10/Exiles | Opened EX-Vault 1574 | -10/Exiles | Found YOLO Cannon 1600 | -10/Exiles | Warned to stay clear of 0b10 Research branches 1635 | -10/Exiles | Met EX-DEC 1677 | -10/Exiles | Discovered new exit (range 14) 1692 | -10/Exiles | Left Exiles lab with YOLO Cannon 1692 | -10/Exiles | Entered Mines 1733 | -9/Mines | Learned Materials stockpile data 1821 | -9/Mines | Assisted by bots powering up and referring to "LRC-V3" 1995 | -9/Mines | Discovered new exit (range 11) 2026 | -9/Mines | Entered Materials 2026 | -8/Materials | Evolved 4 slots: Propulsion x3, Utility x1 2054 | -8/Materials | Lost 3 allies 2132 | -8/Materials | Lost 5 parts (4n1w) 2206 | -8/Materials | Discovered new exit (range 16) 2212 | -8/Materials | Entered Factory 2212 | -7/Factory | Evolved 2 slots: Utility x2 2362 | -7/Factory | Build established: Hacker-Mutant 2421 | -7/Factory | Discovered new exit (range 13) 2508 | -7/Factory | Identified exit to Lower Caves 2508 | -7/Factory | Identified exit to Factory 2524 | -7/Factory | Core integrity fell below 50% 2544 | -7/Factory | Core integrity fell below 20% 2548 | -7/Factory | Lost 7 parts (4n2u1w) 2558 | -7/Factory | Destroyed by S-27 Virus with Autogun Last Messages --------------- 02513_ System corrupted by crushing effect (+2). 02513_ Gravmag System+ broken. 02513_ Destabilizing: Short circuit. 02513_ T-07 Excavator destroyed. 02517_ Broken Gravmag System+ destroyed. 02518_ Dropped Imp. Medium Armor Plating. 02523_ S-27 Virus destroyed. 02525_ K-01 Serf collects debris. 02530_ M-28 Smith repairs S-27 Virus. 02530_ K-01 Serf collects debris. 02537_ Acquired Gauss Rifle. 02541_ Dropped Gauss Rifle. 02542_ S-27 Virus destroyed. 02542_ Acquired 30 matter. 02543_ Acquired VTOL Module. 02545_ M-13 Machinist repairs S-27 Virus VTOL Module. 02549_ VTOL Module destroyed. 02554_ K-01 Serf cleans the Construction Platform. Map ----- +----------------------------------------------------+ | ?????????????????????????????????????????????????? | | ?????????????????????????????????????????????????? | | ?????????????????????????????????????????????????? | | ?????????????????????????????????????????????????? | | ?????????????????????????????????????????????????? | | ?????????????????????????????????????????????????? | | ?????????????????????????????????????????????????? | | ?????????????????????????????????????????????????? | | ?????????????????????????????????????????????????? | | ?????????????????????????????????????????????????? | | ?????????????????????????????????????????????????? | | ?????????????????????????????????????????????????? | | ???????????????????????????????????????